fUST/lending_fUST_20240721
["ID","MTS","AMOUNT","RATE_DAILY","PERIOD"]
[332810940,1721543441014,-617.71,0.00013698,2]
[332810941,1721543441024,-135.02502706,0.00013698,2]
[332810942,1721543441065,-378.94330581,0.00013698,2]
[332810943,1721543441074,-821.67,0.00013698,2]
[332810944,1721543441084,-535.81,0.00013698,2]
[332810945,1721543441093,-213.883687,0.00013698,2]
[332810946,1721543441102,-500.0,0.00013698,2]
[332810947,1721543441112,-502.40678066,0.00013698,2]
[332810948,1721543441317,-500.0,0.00013698,2]
[332810949,1721543441344,-500.0,0.00013698,2]
[332810950,1721543441353,-213.883687,0.00013698,2]
[332810951,1721543441363,-500.0,0.00013698,2]
[332810952,1721543441375,-500.0,0.00013698,2]
[332810953,1721543441384,-500.0,0.00013698,2]
[332810954,1721543441393,-1018.72,0.00013698,2]
[332810955,1721543441402,-527.46022515,0.00013698,2]
[332810956,1721543441412,-1811.52,0.00013698,2]
[332810957,1721543441421,-500.0,0.00013698,2]
[332810958,1721543441432,-500.0,0.00013698,2]
[332810959,1721543441441,-831.67,0.00013698,2]
[332810960,1721543441453,-509.6950994,0.00013698,2]
[332810961,1721543441462,-500.0,0.00013698,2]
[332810962,1721543441473,-500.0,0.00013698,2]
[332810963,1721543441484,-500.0,0.00013698,2]
[332810964,1721543441495,-500.0,0.00013698,2]
[332810965,1721543441506,-502.06907572,0.00013698,2]
[332810966,1721543441515,-500.0,0.00013698,2]
[332810967,1721543441524,-578.55,0.00013698,2]
[332810968,1721543441533,-500.0,0.00013698,2]
[332810969,1721543441542,-500.0,0.00013698,2]
[332810970,1721543441551,-500.0,0.00013698,2]
[332810971,1721543441561,-500.0,0.00013698,2]
[332810972,1721543441570,-500.0,0.00013698,2]
[332810973,1721543441579,-500.0,0.00013698,2]
[332810974,1721543441588,-500.0,0.00013698,2]
[332810975,1721543441598,-990.72,0.00013698,2]
[332810976,1721543441607,-500.0,0.00013698,2]
[332810977,1721543441617,-556.72,0.00013698,2]
[332810978,1721543441626,-500.0,0.00013698,2]
[332810979,1721543441635,-151.0,0.00013698,2]
[332810980,1721543441645,-502.00479006,0.00013698,2]
[332810981,1721543441655,-500.0,0.00013698,2]
[332810982,1721543441664,-756.27,0.00013698,2]
[332810983,1721543441673,-663.3,0.00013698,2]
[332810984,1721543441683,-241.849646,0.00013698,2]
[332810985,1721543441692,-124.60392606,0.00013698,2]
[332810986,1721543441955,-375.39607394,0.00013698,2]
[332810987,1721543441964,-151.0,0.00013698,2]
[332810988,1721543441974,-0.58527138,0.00013698,2]
[332810989,1721543441986,-795.57472862,0.00013698,2]
[332810991,1721543441996,-241.849646,0.00013698,2]
[332810992,1721543442005,-3674.45,0.00013698,2]
[332810993,1721543442015,-184.149784,0.00013698,2]
[332810994,1721543442024,-806.1,0.00013698,2]
[332810995,1721543442034,-500.0,0.00013698,2]
[332810996,1721543442043,-571.92256385,0.00013698,2]
[332810997,1721543442052,-184.149784,0.00013698,2]
[332810998,1721543442061,-614.64,0.00013698,2]
[332810999,1721543442070,-367.166867,0.00013698,2]
[332811000,1721543442079,-367.166867,0.00013698,2]
[332811001,1721543442089,-1424.17,0.00013698,2]
[332811002,1721543442098,-500.0,0.00013698,2]
[332811003,1721543442108,-500.0,0.00013698,2]
[332811004,1721543442119,-501.53767902,0.00013698,2]
[332811005,1721543442128,-500.0,0.00013698,2]
[332811006,1721543442138,-457.76178401,0.00013698,2]
[332811007,1721543442147,-500.0,0.00013698,2]
[332811008,1721543442157,-1172.88,0.00013698,2]
[332811009,1721543442166,-500.0,0.00013698,2]
[332811010,1721543442176,-500.0,0.00013698,2]
[332811011,1721543442185,-500.0,0.00013698,2]
[332811012,1721543442194,-1755.58,0.00013698,2]
[332811013,1721543442204,-504.64998532,0.00013698,2]
[332811014,1721543442213,-500.0,0.00013698,2]
[332811015,1721543442224,-500.0,0.00013698,2]
[332811016,1721543442233,-500.0,0.00013698,2]
[332811017,1721543442242,-500.0,0.00013698,2]
[332811018,1721543442252,-500.0,0.00013698,2]
[332811019,1721543442261,-268.610505,0.00013698,2]
[332811020,1721543442271,-500.0,0.00013698,2]
[332811021,1721543442280,-500.0,0.00013698,2]
[332811022,1721543442289,-512.82091932,0.00013698,2]
[332811023,1721543442298,-268.610505,0.00013698,2]
[332811024,1721543442307,-500.0,0.00013698,2]
[332811025,1721543442317,-500.0,0.00013698,2]
[332811026,1721543442327,-500.0,0.00013698,2]
[332811027,1721543442337,-500.0,0.00013698,2]
[332811028,1721543442350,-500.0,0.00013698,2]
[332811029,1721543442360,-500.0,0.00013698,2]
[332811030,1721543442371,-500.0,0.00013698,2]
[332811031,1721543442381,-500.0,0.00013698,2]
[332811032,1721543442391,-500.0,0.00013698,2]
[332811033,1721543442401,-500.0,0.00013698,2]
[332811034,1721543442411,-500.0,0.00013698,2]
[332811035,1721543442420,-500.0,0.00013698,2]
[332811036,1721543442430,-500.0,0.00013698,2]
[332811037,1721543442440,-500.0,0.00013698,2]
[332811038,1721543442450,-500.0,0.00013698,2]
[332811039,1721543442460,-577.04,0.00013698,2]
[332811040,1721543442470,-533.14,0.00013698,2]
[332811041,1721543442486,-500.0,0.00013698,2]
[332811042,1721543442496,-500.0,0.00013698,2]
[332811043,1721543442507,-500.0,0.00013698,2]
[332811044,1721543442517,-185.12499059,0.00013698,2]
[332811045,1721543442527,-500.0,0.00013698,2]
[332811046,1721543442537,-500.0,0.00013698,2]
[332811047,1721543442546,-500.0,0.00013698,2]
[332811048,1721543442555,-870.11,0.00013698,2]
[332811049,1721543442565,-814.01,0.00013698,2]
[332811050,1721543442574,-202.767016,0.00013698,2]
[332811051,1721543442584,-500.0,0.00013698,2]
[332811052,1721543442593,-537.44918105,0.00013698,2]
[332811053,1721543442603,-500.0,0.00013698,2]
[332811054,1721543442613,-202.767016,0.00013698,2]
[332811055,1721543442622,-500.0,0.00013698,2]
[332811056,1721543442632,-1012.27,0.00013698,2]
[332811057,1721543442642,-500.0,0.00013698,2]
[332811058,1721543442652,-500.0,0.00013698,2]
[332811059,1721543442662,-504.28120277,0.00013698,2]
[332811060,1721543442672,-500.0,0.00013698,2]
[332811061,1721543442681,-500.0,0.00013698,2]
[332811062,1721543442690,-500.0,0.00013698,2]
[332811063,1721543442700,-500.0,0.00013698,2]
[332811064,1721543442709,-814.99,0.00013698,2]
[332811065,1721543442719,-500.0,0.00013698,2]
[332811066,1721543442731,-500.0,0.00013698,2]
[332811067,1721543442741,-500.0,0.00013698,2]
[332811068,1721543442750,-551.81,0.00013698,2]
[332811069,1721543442760,-500.0,0.00013698,2]
[332811070,1721543442769,-2579.77,0.00013698,2]
[332811071,1721543442779,-500.0,0.00013698,2]
[332811072,1721543442789,-500.0,0.00013698,2]
[332811073,1721543442799,-2512.41,0.00013698,2]
[332811075,1721543442808,-500.0,0.00013698,2]
[332811076,1721543442818,-500.0,0.00013698,2]
[332811078,1721543442827,-500.0,0.00013698,2]
[332811080,1721543442837,-516.03261185,0.00013698,2]
[332811082,1721543442847,-500.0,0.00013698,2]
[332811084,1721543442856,-1622.54,0.00013698,2]
[332811086,1721543442867,-500.0,0.00013698,2]
[332811088,1721543442877,-1195.72,0.00013698,2]
[332811090,1721543442886,-500.0,0.00013698,2]
[332811092,1721543442895,-1880.82,0.00013698,2]
[332811093,1721543442905,-500.0,0.00013698,2]
[332811094,1721543442915,-504.37,0.00013698,2]
[332811095,1721543442924,-500.0,0.00013698,2]
[332811096,1721543442933,-500.0,0.00013698,2]
[332811097,1721543442943,-500.0,0.00013698,2]
[332811098,1721543442952,-500.0,0.00013698,2]
[332811100,1721543442962,-500.0,0.00013698,2]
[332811102,1721543442971,-1894.09,0.00013698,2]
[332811104,1721543442982,-500.0,0.00013698,2]
[332811106,1721543442992,-500.0,0.00013698,2]
[332811107,1721543443002,-1489.25,0.00013698,2]
[332811108,1721543443011,-708.2,0.00013698,2]
[332811109,1721543443020,-500.0,0.00013698,2]
[332811110,1721543443030,-524.72,0.00013698,2]
[332811111,1721543443039,-500.0,0.00013698,2]
[332811112,1721543443048,-519.63091483,0.00013698,2]
[332811113,1721543443058,-500.0,0.00013698,2]
[332811114,1721543443067,-500.0,0.00013698,2]
[332811115,1721543443076,-500.0,0.00013698,2]
[332811116,1721543443085,-500.0,0.00013698,2]
[332811117,1721543443095,-503.23587098,0.00013698,2]
[332811118,1721543443104,-502.17138118,0.00013698,2]
[332811119,1721543443114,-500.0,0.00013698,2]
[332811120,1721543443123,-500.0,0.00013698,2]
[332811121,1721543443133,-2063.38415,0.00013698,2]
[332811122,1721543443143,-2063.38415,0.00013698,2]
[332811123,1721543443153,-2130.222608,0.00013698,2]
[332811124,1721543443163,-500.0,0.00013698,2]
[332811125,1721543443173,-500.0,0.00013698,2]
[332811126,1721543443184,-2063.38415,0.00013698,2]
[332811127,1721543443195,-2130.222608,0.00013698,2]
[332811128,1721543443205,-2063.38415,0.00013698,2]
[332811129,1721543443214,-809.08,0.00013698,2]
[332811130,1721543443226,-519.0532503,0.00013698,2]
[332811131,1721543443236,-500.0,0.00013698,2]
[332811132,1721543443246,-509.39,0.00013698,2]
[332811134,1721543443255,-502.80562634,0.00013698,2]
[332811135,1721543443268,-1577.74,0.00013698,2]
[332811136,1721543443282,-500.0,0.00013698,2]
[332811137,1721543443297,-500.0,0.00013698,2]
[332811138,1721543443311,-500.0,0.00013698,2]
[332811139,1721543443324,-501.33508252,0.00013698,2]
[332811140,1721543443336,-1569.133557,0.00013698,2]
[332811141,1721543443353,-501.09062713,0.00013698,2]
[332811142,1721543443367,-500.0,0.00013698,2]
[332811143,1721543443382,-1569.133557,0.00013698,2]
[332811145,1721543443396,-506.25486992,0.00013698,2]
[332811146,1721543443411,-1569.133557,0.00013698,2]
[332811147,1721543443426,-1569.133557,0.00013698,2]
[332811148,1721543443439,-2335.8,0.00013698,2]
[332811149,1721543443452,-500.0,0.00013698,2]
[332811150,1721543443465,-227.891264,0.00013698,2]
[332811151,1721543443481,-227.891264,0.00013698,2]
[332811152,1721543443493,-500.0,0.00013698,2]
[332811153,1721543443505,-151.0,0.00013698,2]
[332811154,1721543443518,-227.891264,0.00013698,2]
[332811155,1721543443531,-227.891264,0.00013698,2]
[332811156,1721543443544,-151.0,0.00013698,2]
[332811157,1721543443557,-1426.94,0.00013698,2]
[332811158,1721543443569,-1426.94,0.00013698,2]
[332811159,1721543443581,-1426.94,0.00013698,2]
[332811160,1721543443591,-1426.94,0.00013698,2]
[332811161,1721543443602,-500.0,0.00013698,2]
[332811162,1721543443615,-1426.94,0.00013698,2]
[332811163,1721543443628,-1426.94,0.00013698,2]
[332811164,1721543443640,-500.0,0.00013698,2]
[332811165,1721543443652,-500.0,0.00013698,2]
[332811166,1721543443665,-500.0,0.00013698,2]
[332811167,1721543443678,-1556.98,0.00013698,2]
[332811168,1721543443691,-504.86194767,0.00013698,2]
[332811169,1721543443704,-500.0,0.00013698,2]
[332811170,1721543443718,-931.1,0.00013698,2]
[332811171,1721543443735,-501.95006325,0.00013698,2]
[332811172,1721543443748,-500.0,0.00013698,2]
[332811173,1721543443760,-500.0,0.00013698,2]
[332811174,1721543443770,-1247.52,0.00013698,2]
[332811175,1721543443781,-500.0,0.00013698,2]
[332811176,1721543443792,-500.0,0.00013698,2]
[332811177,1721543443806,-265.576394,0.00013698,2]
[332811178,1721543443821,-500.0,0.00013698,2]
[332811179,1721543443834,-500.0,0.00013698,2]
[332811180,1721543443848,-500.0,0.00013698,2]
[332811181,1721543443859,-265.576394,0.00013698,2]
[332811182,1721543443872,-500.0,0.00013698,2]
[332811183,1721543443884,-1294.02481,0.00013698,2]
[332811184,1721543443896,-1294.02481,0.00013698,2]
[332811185,1721543443908,-1168.79,0.00013698,2]
[332811186,1721543443921,-500.0,0.00013698,2]
[332811187,1721543443933,-1294.02481,0.00013698,2]
[332811188,1721543443945,-505.02,0.00013698,2]
[332811189,1721543443955,-500.0,0.00013698,2]
[332811190,1721543443966,-1294.02481,0.00013698,2]
[332811191,1721543443977,-151.0,0.00013698,2]
[332811192,1721543443989,-151.0,0.00013698,2]
[332811193,1721543444000,-640.18,0.00013698,2]
[332811194,1721543444011,-500.0,0.00013698,2]
[332811195,1721543444022,-2251.67,0.00013698,2]
[332811196,1721543444033,-512.34617721,0.00013698,2]
[332811197,1721543444047,-1689.54,0.00013698,2]
[332811198,1721543444058,-732.12,0.00013698,2]
[332811199,1721543444069,-500.0,0.00013698,2]
[332811200,1721543444081,-1639.85,0.00013698,2]
[332811201,1721543444094,-1936.83,0.00013698,2]
[332811202,1721543444106,-624.2,0.00013698,2]
[332811203,1721543444117,-1079.04,0.00013698,2]
[332811204,1721543444127,-971.32,0.00013698,2]
[332811205,1721543444138,-500.0,0.00013698,2]
[332811206,1721543444150,-5625.7,0.00013698,2]
[332811207,1721543444161,-1051.55,0.00013698,2]
[332811208,1721543444174,-770.63,0.00013698,2]
[332811209,1721543444186,-502.40607117,0.00013698,2]
[332811210,1721543444198,-500.0,0.00013698,2]
[332811211,1721543444209,-500.0,0.00013698,2]
[332811212,1721543444220,-500.0,0.00013698,2]
[332811213,1721543444234,-3569.486148,0.00013698,2]
[332811214,1721543444245,-6925.8,0.00013698,2]
[332811215,1721543444259,-3569.486148,0.00013698,2]
[332811216,1721543444272,-500.0,0.00013698,2]
[332811217,1721543444284,-151.0,0.00013698,2]
[332811218,1721543444297,-151.0,0.00013698,2]
[332811219,1721543444310,-948.19,0.00013698,2]
[332811220,1721543444322,-500.0,0.00013698,2]
[332811221,1721543444333,-3569.486148,0.00013698,2]
[332811222,1721543444346,-3569.486148,0.00013698,2]
[332811223,1721543444357,-500.0,0.00013698,2]
[332811224,1721543444367,-500.0,0.00013698,2]
[332811225,1721543444378,-500.0,0.00013698,2]
[332811226,1721543444391,-494.42095459,0.00013698,2]
[332811227,1721543444403,-631.37,0.00013698,2]
[332811228,1721543444414,-502.21410054,0.00013698,2]
[332811229,1721543444426,-500.0,0.00013698,2]
[332811230,1721543444439,-558.39,0.00013698,2]
[332811231,1721543444452,-3920.56,0.00013698,2]
[332811232,1721543444463,-500.0,0.00013698,2]
[332811233,1721543444476,-151.0,0.00013698,2]
[332811234,1721543444490,-151.0,0.00013698,2]
[332811235,1721543444501,-500.0,0.00013698,2]
[332811236,1721543444513,-748.42,0.00013698,2]
[332811237,1721543444525,-2992.39,0.00013698,2]
[332811238,1721543444537,-500.0,0.00013698,2]
[332811239,1721543444548,-500.0,0.00013698,2]
[332811240,1721543444560,-550.76,0.00013698,2]
[332811241,1721543444573,-576.82,0.00013698,2]
[332811242,1721543444585,-500.0,0.00013698,2]
[332811243,1721543444597,-3458.79,0.00013698,2]
[332811244,1721543444609,-836.06,0.00013698,2]
[332811245,1721543444621,-500.0,0.00013698,2]
[332811246,1721543444632,-1905.76,0.00013698,2]
[332811247,1721543444645,-7225.33,0.00013698,2]
[332811248,1721543444657,-183.006102,0.00013698,2]
[332811249,1721543444668,-183.006102,0.00013698,2]
[332811250,1721543444680,-2187.24,0.00013698,2]
[332811251,1721543444692,-2030.69,0.00013698,2]
[332811252,1721543444705,-183.006102,0.00013698,2]
[332811253,1721543444716,-183.006102,0.00013698,2]
[332811254,1721543444730,-743.59,0.00013698,2]
[332811255,1721543444741,-2391.31,0.00013698,2]
[332811256,1721543444755,-151.0,0.00013698,2]
[332811257,1721543444766,-151.0,0.00013698,2]
[332811258,1721543444778,-613.67,0.00013698,2]
[332811259,1721543444789,-500.0,0.00013698,2]
[332811260,1721543444800,-1120.1,0.00013698,2]
[332811261,1721543444811,-151.0,0.00013698,2]
[332811262,1721543444822,-151.0,0.00013698,2]
[332811263,1721543444834,-151.0,0.00013698,2]
[332811264,1721543444845,-7251.392607,0.00013698,2]
[332811265,1721543444856,-151.0,0.00013698,2]
[332811266,1721543444868,-7251.392607,0.00013698,2]
[332811267,1721543444880,-201.784042,0.00013698,2]
[332811268,1721543444893,-500.0,0.00013698,2]
[332811269,1721543444905,-7251.392607,0.00013698,2]
[332811270,1721543444917,-7251.392607,0.00013698,2]
[332811271,1721543444929,-505.23104049,0.00013698,2]
[332811272,1721543444941,-503.64244037,0.00013698,2]
[332811273,1721543444953,-500.0,0.00013698,2]
[332811274,1721543444964,-500.0,0.00013698,2]
[332811275,1721543444978,-2649.87,0.00013698,2]
[332811276,1721543444989,-151.0,0.00013698,2]
[332811277,1721543445001,-500.0,0.00013698,2]
[332811278,1721543445014,-3244.427582,0.00013698,2]
[332811279,1721543445025,-151.0,0.00013698,2]
[332811280,1721543445036,-3244.427582,0.00013698,2]
[332811281,1721543445048,-500.0,0.00013698,2]
[332811282,1721543445059,-151.0,0.00013698,2]
[332811283,1721543445070,-3244.427582,0.00013698,2]
[332811284,1721543445081,-151.0,0.00013698,2]
[332811285,1721543445092,-1348.89,0.00013698,2]
[332811286,1721543445102,-3244.427582,0.00013698,2]
[332811287,1721543445113,-508.41832404,0.00013698,2]
[332811288,1721543445124,-527.6,0.00013698,2]
[332811289,1721543445135,-500.0,0.00013698,2]
[332811290,1721543445145,-500.0,0.00013698,2]
[332811291,1721543445156,-243.644136,0.00013698,2]
[332811292,1721543445167,-243.644136,0.00013698,2]
[332811293,1721543445180,-500.0,0.00013698,2]
[332811294,1721543445205,-500.0,0.00013698,2]
[332811295,1721543445220,-907.05,0.00013698,2]
[332811296,1721543445236,-631.7,0.00013698,2]
[332811297,1721543445251,-243.644136,0.00013698,2]
[332811298,1721543445265,-243.644136,0.00013698,2]
[332811299,1721543445278,-500.0,0.00013698,2]
[332811300,1721543445292,-619.33,0.00013698,2]
[332811301,1721543445305,-500.0,0.00013698,2]
[332811302,1721543445319,-500.42433486,0.00013698,2]
[332811303,1721543445332,-5033.99,0.00013698,2]
[332811304,1721543445347,-500.0,0.00013698,2]
[332811305,1721543445360,-500.0,0.00013698,2]
[332811306,1721543445373,-500.0,0.00013698,2]
[332811307,1721543445385,-272.43551272,0.00013698,2]
[332811308,1721543445398,-151.0,0.00013698,2]
[332811309,1721543445409,-353.74643827,0.00013698,2]
[332811310,1721543445422,-151.0,0.00013698,2]
[332811311,1721543445434,-1887.91,0.00013698,2]
[332811312,1721543445447,-589.16,0.00013698,2]
[332811313,1721543445459,-151.0,0.00013698,2]
[332811314,1721543445471,-151.0,0.00013698,2]
[332811315,1721543445485,-2071.774206,0.00013698,2]
[332811316,1721543445497,-500.0,0.00013698,2]
[332811317,1721543445508,-2071.774206,0.00013698,2]
[332811318,1721543445520,-586.78,0.00013698,2]
[332811319,1721543445531,-530.13,0.00013698,2]
[332811320,1721543445543,-504.61777039,0.00013698,2]
[332811321,1721543445556,-2071.774206,0.00013698,2]
[332811322,1721543445568,-2071.774206,0.00013698,2]
[332811323,1721543445580,-500.0,0.00013698,2]
[332811324,1721543445592,-3222.72,0.00013698,2]
[332811325,1721543445603,-603.44,0.00013698,2]
[332811326,1721543445614,-718.49,0.00013698,2]
[332811327,1721543445625,-820.98,0.00013698,2]
[332811328,1721543445638,-500.0,0.00013698,2]
[332811329,1721543445649,-4598.6715,0.00013698,2]
[332811330,1721543445661,-4598.6715,0.00013698,2]
[332811331,1721543445672,-16486.38,0.00013698,2]
[332811332,1721543445684,-601.93,0.00013698,2]
[332811333,1721543445694,-10309.05,0.00013698,2]
[332811334,1721543445705,-4598.6715,0.00013698,2]
[332811335,1721543445714,-1501.25,0.00013698,2]
[332811336,1721543445724,-4598.6715,0.00013698,2]
[332811337,1721543445737,-3179.21,0.00013698,2]
[332811338,1721543445746,-500.0,0.00013698,2]
[332811339,1721543445755,-500.0,0.00013698,2]
[332811340,1721543445765,-500.0,0.00013698,2]
[332811341,1721543445775,-500.0,0.00013698,2]
[332811342,1721543445784,-1048.19,0.00013698,2]
[332811343,1721543445794,-500.0,0.00013698,2]
[332811345,1721543445803,-500.0,0.00013698,2]
[332811352,1721543446191,-500.0,0.00013698,2]
[332811353,1721543446213,-1411.83,0.00013698,2]
[332811354,1721543446226,-2375.84,0.00013698,2]
[332811355,1721543446239,-500.0,0.00013698,2]
[332811356,1721543446250,-500.0,0.00013698,2]
[332811357,1721543446260,-577.43,0.00013698,2]
[332811358,1721543446269,-2464.77,0.00013698,2]
[332811359,1721543446279,-1205.28,0.00013698,2]
[332811360,1721543446290,-151.0,0.00013698,2]
[332811361,1721543446302,-151.0,0.00013698,2]
[332811362,1721543446312,-500.0,0.00013698,2]
[332811363,1721543446323,-2739.1,0.00013698,2]
[332811364,1721543446333,-922.67,0.00013698,2]
[332811365,1721543446347,-507.09727474,0.00013698,2]
[332811366,1721543446358,-151.0,0.00013698,2]
[332811367,1721543446368,-151.0,0.00013698,2]
[332811368,1721543446378,-4564.62,0.00013698,2]
[332811369,1721543446387,-500.0,0.00013698,2]
[332811370,1721543446399,-1042.49,0.00013698,2]
[332811371,1721543446408,-1856.22,0.00013698,2]
[332811372,1721543446419,-151.0,0.00013698,2]
[332811373,1721543446429,-631.49,0.00013698,2]
[332811374,1721543446439,-151.0,0.00013698,2]
[332811375,1721543446450,-517.81637955,0.00013698,2]
[332811376,1721543446461,-500.0,0.00013698,2]
[332811377,1721543446472,-1194.74,0.00013698,2]
[332811378,1721543446484,-500.0,0.00013698,2]
[332811379,1721543446494,-500.0,0.00013698,2]
[332811380,1721543446504,-1014.75,0.00013698,2]
[332811381,1721543446514,-2932.41,0.00013698,2]
[332811382,1721543446524,-500.0,0.00013698,2]
[332811383,1721543446535,-2899.31,0.00013698,2]
[332811384,1721543446546,-2093.45,0.00013698,2]
[332811385,1721543446557,-501.43167891,0.00013698,2]
[332811387,1721543446567,-500.0,0.00013698,2]
[332811388,1721543446576,-500.0,0.00013698,2]
[332811389,1721543446587,-1754.06,0.00013698,2]
[332811390,1721543446598,-655.76,0.00013698,2]
[332811391,1721543446608,-500.0,0.00013698,2]
[332811392,1721543446620,-8280.88,0.00013698,2]
[332811393,1721543446631,-1376.43,0.00013698,2]
[332811394,1721543446640,-500.0,0.00013698,2]
[332811396,1721543446649,-2774.36,0.00013698,2]
[332811397,1721543446658,-500.0,0.00013698,2]
[332811398,1721543446667,-500.0,0.00013698,2]
[332811400,1721543446678,-500.0,0.00013698,2]
[332811401,1721543446688,-500.0,0.00013698,2]
[332811402,1721543446699,-500.0,0.00013698,2]
[332811403,1721543446709,-500.0,0.00013698,2]
[332811404,1721543446720,-291.18737094,0.00013698,2]
[332811405,1721543446729,-858.14,0.00013698,2]
[332811406,1721543446741,-500.0,0.00013698,2]
[332811407,1721543446751,-500.0,0.00013698,2]
[332811408,1721543446761,-500.0,0.00013698,2]
[332811409,1721543446770,-506.1306222,0.00013698,2]
[332811410,1721543446779,-501.33225345,0.00013698,2]
[332811411,1721543446789,-500.0,0.00013698,2]
[332811412,1721543446798,-500.0,0.00013698,2]
[332811413,1721543446809,-304.87295067,0.00013698,2]
[332811414,1721543447429,-195.12704933,0.00013698,2]
[332811415,1721543447438,-915.6,0.00013698,2]
[332811416,1721543447448,-1619.46,0.00013698,2]
[332811417,1721543447458,-480.92618224,0.00013698,2]
[332811418,1721543447468,-1042.52,0.00013698,2]
[332811419,1721543447479,-1619.46,0.00013698,2]
[332811420,1721543447488,-1619.46,0.00013698,2]
[332811421,1721543447497,-500.0,0.00013698,2]
[332811422,1721543447506,-990.29,0.00013698,2]
[332811423,1721543447517,-1619.46,0.00013698,2]
[332811424,1721543447528,-649.58,0.00013698,2]
[332811425,1721543447537,-1619.46,0.00013698,2]
[332811426,1721543447547,-1619.46,0.00013698,2]
[332811427,1721543447557,-1619.46,0.00013698,2]
[332811428,1721543447567,-500.0,0.00013698,2]
[332811429,1721543447577,-1619.46,0.00013698,2]
[332811430,1721543447588,-1619.46,0.00013698,2]
[332811431,1721543447598,-1619.46,0.00013698,2]
[332811432,1721543447608,-1619.46,0.00013698,2]
[332811433,1721543447619,-1619.46,0.00013698,2]
[332811434,1721543447629,-654.93,0.00013698,2]
[332811435,1721543447641,-1027.42469768,0.00013698,2]
[332811436,1721543447808,-333.3986771,0.00013698,2]
[332811437,1721543447819,-258.63662522,0.00013698,2]
[332811438,1721543447828,-1619.46,0.00013698,2]
[332811439,1721543447841,-3908.02682265,0.00013698,2]
[332811440,1721543447853,-636.0,0.00013698,2]
[332811441,1721543448004,-79.58846035,0.00013698,2]
[332811442,1721543448014,-264.42536492,0.00013698,2]
[332811443,1721543448026,-1355.03463508,0.00013698,2]
[332811444,1721543448035,-4623.615283,0.00013698,2]
[332811445,1721543448044,-500.0,0.00013698,2]
[332811446,1721543448054,-500.0,0.00013698,2]
[332811447,1721543448063,-685.87144128,0.00013698,2]
[332811529,1721544453108,-154.92012751,9.999e-05,2]
[332811530,1721544453130,-294.08597755,9.999e-05,2]
[332811531,1721544453153,-392.37099697,9.999e-05,2]
[332811532,1721544453173,-154.95119798,9.999e-05,2]
[332811533,1721544453195,-209.38449537,9.999e-05,2]
[332811534,1721544453215,-154.79103211,9.999e-05,2]
[332811535,1721544453237,-300.0,0.00012092,2]
[332811536,1721544453258,-8108.27896322,0.00012093,2]
[332811558,1721544582215,20000.0,0.000225,30]
[332811575,1721544632523,-154.76012181,9.999e-05,2]
[332811576,1721544632534,-218.09499306,0.00012093,2]
[332811577,1721544632544,-1085.5793858,0.00012093,2]
[332811578,1721544632553,-16791.72103678,0.00012093,2]
[332811579,1721544632564,-500.61107229,0.00012119,2]
[332811580,1721544632575,-2642.5549706,0.00012214,2]
[332811581,1721544632585,-178.49381,0.00012282,2]
[332811582,1721544632595,-178.49381,0.00012922,2]
[332811583,1721544632604,-3632.86008833,0.00013,2]